bitfinex/quotes_SOLUSD_20250206
["timestamp","ask_amount","ask_price","bid_price","bid_amount"]
[1738884334528,1.43309018,189.66,189.65,0.03]
[1738884336923,14.96473221,189.66,189.65,0.03]
[1738884337125,1.43309018,189.66,189.65,0.03]
[1738884337836,1.54683554,189.66,189.65,0.03]
[1738884339018,15.07847757,189.66,189.65,0.03]
[1738884339332,14.96507238,189.66,189.65,0.03]
[1738884339712,1.43343035,189.66,189.65,0.03]
[1738884342048,16.54677238,189.66,189.65,0.03]
[1738884345845,30.95862091,189.66,189.65,0.03]
[1738884346038,13.78831853,189.65,189.62,0.03]
[1738884346226,20.0,189.58,189.48,13.53164203]
[1738884346543,13.53164203,189.55,189.48,13.53164203]
[1738884347226,13.53164203,189.54,189.47,18.80944203]
[1738884347431,13.53164203,189.54,189.47,13.53164203]
[1738884347932,1.31968499,189.53,189.48,13.53164203]
[1738884348432,13.53164203,189.52,189.46,5.2781]
[1738884348642,1.31968499,189.53,189.4,1.539]
[1738884348815,13.53164203,189.49,189.42,13.53164203]
[1738884349565,13.53164203,189.48,189.41,18.81104203]
[1738884349938,15.11484203,189.49,189.42,13.53164203]
[1738884350339,13.53164203,189.48,189.4,13.53164203]
[1738884350535,13.53164203,189.47,189.42,0.03]
[1738884350952,13.53164203,189.46,189.42,0.03]
[1738884351335,13.53164203,189.44,189.42,0.03]
[1738884351873,13.53164203,189.46,189.42,0.03]
[1738884352077,13.53164203,189.47,189.42,0.03]
[1738884352273,1.31968499,189.48,189.43,13.53164203]
[1738884352569,14.85132702,189.48,189.42,0.03]
[1738884352958,13.53164203,189.47,189.42,0.03]
[1738884353341,13.53164203,189.46,189.42,0.03]
[1738884353545,13.53164203,189.45,189.42,0.03]
[1738884353964,13.53164203,189.47,189.42,0.03]
[1738884355045,13.53164203,189.45,189.42,0.03]
[1738884356451,13.53164203,189.44,189.42,0.03]
[1738884356669,13.53164203,189.43,189.42,0.03]
[1738884357873,13.63230695,189.43,189.42,0.03]
[1738884358191,15.21590695,189.43,189.42,0.03]
[1738884359085,0.10066492,189.43,189.42,0.03]
[1738884363307,0.10066492,189.43,189.42,13.56164203]
[1738884364479,0.10066492,189.43,189.42,15.17014203]
[1738884365373,0.10066492,189.43,189.42,20.44934203]
[1738884365765,6.492e-05,189.43,189.42,21.82581203]
[1738884365964,6.492e-05,189.43,189.42,42.63406056]
[1738884366967,0.1141214,189.47,189.45,1.0]
[1738884367179,0.1141214,189.47,189.46,13.53164203]
[1738884367479,0.1141214,189.47,189.46,18.80974203]
[1738884367875,0.00515629,189.5,189.46,19.80974203]
[1738884368064,0.00515629,189.5,189.49,13.53164203]
[1738884368264,0.00515629,189.5,189.49,35.91036056]
[1738884368584,1.5143,189.65,189.51,15.78831853]
[1738884368585,1.157e-05,189.52,189.51,15.78831853]
[1738884368779,1.157e-05,189.52,189.51,43.76820767]
[1738884368970,1.157e-05,189.52,189.51,13.53164203]
[1738884369504,1.157e-05,189.52,189.51,18.80834203]
[1738884372400,1.157e-05,189.52,189.51,19.59959415]
[1738884372602,1.157e-05,189.52,189.51,18.80834203]
[1738884373104,1.157e-05,189.52,189.46,13.53164203]
[1738884373281,1.157e-05,189.52,189.42,13.56164203]
[1738884373282,13.53164203,189.49,189.42,13.56164203]
[1738884373475,13.53164203,189.49,189.42,0.03]
[1738884374077,13.53164203,189.48,189.42,0.03]
[1738884374275,13.53164203,189.47,189.42,0.03]
[1738884374674,15.11484203,189.49,189.42,13.56164203]
[1738884374874,13.53164203,189.49,189.42,13.56164203]
[1738884375071,13.53164203,189.51,189.44,13.53164203]
[1738884375335,13.53164203,189.5,189.43,13.53164203]
[1738884375518,13.53164203,189.49,189.42,13.56164203]
[1738884376186,13.53164203,189.5,189.43,13.53164203]
[1738884376384,13.5316536,189.52,189.45,13.53164203]
[1738884376776,1.157e-05,189.52,189.46,13.53164203]
[1738884376984,1.157e-05,189.52,189.48,13.53164203]
[1738884377506,1.157e-05,189.52,189.47,13.53164203]
[1738884377700,1.157e-05,189.52,189.48,13.53164203]
[1738884377907,0.10064648,189.49,189.48,13.53164203]
[1738884378281,0.10064648,189.49,189.48,18.80924203]
[1738884378700,4.648e-05,189.49,189.48,19.97703767]
[1738884378880,4.648e-05,189.49,189.48,20.60056767]
[1738884379611,4.648e-05,189.49,189.48,20.97703767]
[1738884379902,0.10473114,189.5,189.49,2.50196]
[1738884379903,7.762e-05,189.5,189.49,2.50196]
[1738884380104,7.762e-05,189.5,189.49,13.90811203]
[1738884380312,7.762e-05,189.5,189.49,19.18541203]
[1738884381806,7.762e-05,189.5,189.49,20.18541203]
[1738884383203,7.762e-05,189.5,189.49,19.18541203]
[1738884383716,7.762e-05,189.5,189.49,20.18541203]
[1738884383915,0.08410333,189.51,189.49,20.18541203]
[1738884384215,0.08410333,189.51,189.5,15.69937655]
[1738884384723,9.25e-05,189.52,189.51,15.41184853]
[1738884384898,9.25e-05,189.52,189.51,28.94349056]
[1738884385094,9.25e-05,189.52,189.51,27.94349056]
[1738884385421,9.25e-05,189.52,189.51,18.80834203]
[1738884385802,9.25e-05,189.52,189.51,20.18481203]
[1738884386811,9.25e-05,189.52,189.51,21.18481203]
[1738884387116,9.25e-05,189.52,189.51,20.18481203]
[1738884387495,9.25e-05,189.52,189.51,34.59666056]
[1738884387713,9.25e-05,189.52,189.51,35.38779809]
[1738884387914,9.25e-05,189.52,189.51,34.38779809]
[1738884388508,9.25e-05,189.52,189.51,35.38779809]
[1738884388903,9.25e-05,189.52,189.51,33.38779809]
[1738884389106,9.25e-05,189.52,189.51,34.38779809]
[1738884389499,9.25e-05,189.52,189.51,18.80834203]
[1738884391522,9.25e-05,189.52,189.51,13.53164203]
[1738884391720,9.25e-05,189.52,189.5,5.2769]
[1738884391931,9.25e-05,189.52,189.49,18.80884203]
[1738884392535,9.25e-05,189.52,189.5,13.53164203]
[1738884393510,9.25e-05,189.52,189.5,18.80854203]
[1738884393822,9.25e-05,189.52,189.51,13.53164203]
[1738884394703,9.25e-05,189.52,189.49,18.80894203]
[1738884396421,9.25e-05,189.52,189.51,13.53164203]
[1738884397917,0.10536881,189.52,189.51,13.53164203]
[1738884398116,0.16836881,189.52,189.51,13.53164203]
[1738884398303,0.16836881,189.52,189.51,18.80834203]
[1738884398710,0.16836881,189.52,189.51,5.2767]
[1738884398907,0.16836881,189.52,189.5,13.53164203]
[1738884399534,0.16827631,189.52,189.51,13.53164203]
[1738884399834,0.16827631,189.52,189.51,18.80834203]
[1738884405014,0.16827631,189.52,189.49,13.53164203]
[1738884406032,0.16827631,189.52,189.5,5.277]
[1738884407133,0.16827631,189.52,189.5,13.53164203]
[1738884408139,0.16827631,189.52,189.48,13.53164203]
[1738884408437,0.16827631,189.52,189.48,18.80914203]
[1738884410642,0.16827631,189.52,189.48,18.83914203]
[1738884410845,1.32060492,189.51,189.48,18.83914203]
[1738884411927,1.32060492,189.51,189.48,13.56164203]
[1738884412135,1.32060492,189.51,189.48,0.03]
[1738884413547,1.32060492,189.51,189.48,5.3076]
[1738884414424,1.32060492,189.51,189.49,13.53164203]
[1738884415338,1.32060492,189.51,189.48,5.3076]
[1738884415947,1.32060492,189.51,189.48,0.03]
[1738884416450,0.16827631,189.52,189.48,0.03]
[1738884417026,0.16827631,189.52,189.48,13.56164203]
[1738884417957,0.0967189,189.49,189.48,18.83924203]
[1738884418265,0.0967189,189.49,189.48,5.3076]
[1738884419356,0.0967189,189.49,189.48,18.83924203]
[1738884419859,0.0967189,189.49,189.48,5.3076]
[1738884421753,1.41741046,189.49,189.48,13.56164203]
[1738884422342,1.41741046,189.49,189.48,0.03]
[1738884422741,0.0967189,189.49,189.48,0.03]
[1738884424056,0.0967189,189.49,189.48,5.3076]
[1738884424861,1.41740446,189.49,189.48,5.3076]
[1738884425156,1.41740446,189.49,189.48,18.83924203]
[1738884426357,0.0967189,189.49,189.48,18.83924203]
[1738884426735,0.0967189,189.49,189.48,8.69998349]
[1738884426953,0.0967189,189.49,189.48,9.49139301]
[1738884427740,0.0967189,189.49,189.48,0.03]
[1738884427962,0.0967189,189.49,189.48,8.69998349]
[1738884428630,0.0967189,189.49,189.48,13.97758349]
[1738884429452,0.0967189,189.49,189.48,0.03]
[1738884430559,1.41745174,189.49,189.48,8.69998349]
[1738884430770,1.41745174,189.49,189.48,13.97758349]
[1738884432155,0.0967189,189.49,189.48,13.97758349]
[1738884433762,0.0967189,189.49,189.48,0.03]
[1738884433966,8.76670239,189.49,189.48,0.03]
[1738884434140,10.34980239,189.49,189.48,0.03]
[1738884434670,11.67102659,189.49,189.48,0.03]
[1738884435768,15.62892659,189.49,189.43,0.03]
[1738884435942,8.66998349,189.45,189.43,0.03]
[1738884436559,11.54880769,189.44,189.43,0.03]
[1738884436747,2.8788242,189.44,189.43,0.03]
[1738884436957,22.71080178,189.44,189.43,0.03]
[1738884437866,24.39881194,189.44,189.43,0.03]
[1738884444267,24.39881194,189.44,189.43,0.0001]
[1738884446053,18.13331194,189.44,189.43,0.0001]
[1738884449057,1.42563436,189.44,189.43,0.0001]
[1738884450175,0.10441016,189.44,189.43,13.56657758]
[1738884450691,0.10441016,189.44,189.43,13.94304758]
[1738884450981,0.10441016,189.44,189.43,15.73454169]
[1738884451287,0.10441016,189.44,189.43,33.42529022]
[1738884451661,0.10441016,189.44,189.43,35.00049022]
[1738884451861,0.10441016,189.44,189.43,36.00049022]
[1738884452174,1.016e-05,189.44,189.43,37.12598022]
[1738884452373,1.016e-05,189.44,189.43,35.12598022]
[1738884452552,1.016e-05,189.44,189.43,36.12598022]
[1738884452748,1.016e-05,189.44,189.43,37.12598022]
[1738884453495,1.016e-05,189.44,189.43,21.58864169]
[1738884453775,1.016e-05,189.44,189.43,20.42067758]
[1738884454781,1.016e-05,189.44,189.43,18.84547758]
[1738884455483,1.016e-05,189.44,189.43,5.279]
[1738884456075,1.016e-05,189.44,189.43,0.0001]
[1738884457960,0.09848032,189.44,189.43,0.0001]
[1738884459383,0.09847016,189.44,189.43,0.0001]
[1738884460270,0.16147016,189.44,189.43,0.0001]
[1738884463192,13.72794774,189.44,189.43,0.0001]
[1738884464181,15.04921936,189.44,189.43,0.0001]
[1738884464761,16.63281936,189.44,189.43,0.0001]
[1738884467466,19.21701936,189.44,189.43,0.0001]
[1738884467659,40.54143789,189.44,189.43,0.0001]
[1738884467862,20.0,189.41,189.3,13.56647758]
[1738884468084,13.56647758,189.37,189.3,13.56647758]
[1738884468980,13.56647758,189.36,189.29,13.56647758]
[1738884469163,13.56647758,189.36,189.3,13.56647758]
[1738884469902,15.15067758,189.37,189.3,13.56647758]
[1738884470681,1.32184153,189.36,189.3,13.56647758]
[1738884471073,1.32184153,189.36,189.31,13.56647758]
[1738884471271,13.56647758,189.32,189.24,13.56647758]
[1738884471471,13.56647758,189.3,189.22,13.56647758]
[1738884471784,13.56647758,189.3,189.23,13.56647758]
[1738884471985,13.56647758,189.29,189.22,13.56647758]
[1738884472192,1.5847,189.3,189.24,13.56647758]
[1738884472499,15.15117758,189.31,189.24,13.56647758]
[1738884473064,13.56647758,189.3,189.24,13.56647758]
[1738884473269,13.56647758,189.3,189.23,18.85097758]
[1738884473678,15.15127758,189.3,189.23,13.56647758]
[1738884474076,13.56647758,189.28,189.22,13.56647758]
[1738884474275,13.56647758,189.28,189.21,13.56647758]
[1738884474591,15.15127758,189.3,189.23,13.56647758]
[1738884474765,1.5848,189.3,189.24,13.56647758]
[1738884475271,13.56647758,189.29,189.23,13.56647758]
[1738884475679,13.56647758,189.32,189.25,13.56647758]
[1738884475894,35.15097758,189.33,189.26,13.56647758]
[1738884476969,13.56647758,189.32,189.26,13.56647758]
[1738884477202,1.6138,189.34,189.28,13.56647758]
[1738884477504,1.32224665,189.32,189.26,13.56647758]
[1738884477993,0.11100263,189.27,189.26,13.56647758]
[1738884478372,0.11100263,189.27,189.26,18.85017758]
[1738884481274,0.11100263,189.27,189.26,13.56647758]
[1738884481477,0.11100263,189.27,189.22,13.2115]
[1738884481478,0.11100263,189.27,189.25,5.2839]
[1738884481904,0.11100263,189.27,189.26,13.56647758]
[1738884483272,0.11100263,189.27,189.26,18.85017758]
[1738884483591,0.11100263,189.27,189.26,20.41177758]
[1738884484172,0.11100263,189.27,189.26,20.44177758]
[1738884484375,19.77167758,189.41,189.3,0.37647]
[1738884484571,19.77167758,189.41,189.34,13.56647758]
[1738884484784,13.56647758,189.42,189.34,13.56647758]
[1738884485188,1.6799,189.44,189.34,13.56647758]
[1738884485189,1.5839,189.4,189.34,13.56647758]
[1738884485397,13.56647758,189.41,189.34,13.56647758]
[1738884485579,13.56647758,189.42,189.34,13.56647758]
[1738884485887,13.56647758,189.41,189.34,13.56647758]
[1738884486185,1.5838,189.41,189.34,13.56647758]
[1738884486498,13.56647758,189.42,189.34,18.84797758]
[1738884486798,1.5838,189.41,189.34,18.84797758]
[1738884487097,15.15037758,189.4,189.33,13.56647758]
[1738884487394,13.56647758,189.42,189.34,13.56647758]
[1738884487698,15.15017758,189.42,189.34,13.56647758]
[1738884487997,13.56647758,189.42,189.34,13.56647758]
[1738884488200,16.82997758,189.44,189.34,13.56647758]
[1738884488494,15.15017758,189.43,189.34,18.84797758]
[1738884488799,13.56647758,189.42,189.34,18.84797758]
[1738884489185,15.15017758,189.43,189.34,18.84797758]
[1738884489389,1.6799,189.44,189.34,19.22444758]
[1738884489600,1.352e-05,189.35,189.34,35.42817903]
[1738884490088,1.352e-05,189.35,189.34,20.0163305]
[1738884490890,1.352e-05,189.35,189.34,34.42817903]
[1738884491090,1.352e-05,189.35,189.34,33.42817903]
[1738884491497,1.352e-05,189.35,189.34,34.42817903]
[1738884491887,1.352e-05,189.35,189.34,33.42817903]
[1738884492399,1.352e-05,189.35,189.34,35.55366903]
[1738884492575,1.352e-05,189.35,189.34,33.42817903]
[1738884493382,1.352e-05,189.35,189.34,34.42817903]
[1738884493903,0.063,189.44,189.38,0.37647]
[1738884494091,0.063,189.44,189.42,13.56647758]
[1738884494402,0.063,189.44,189.43,18.84537758]
[1738884496900,0.063,189.44,189.39,18.84637758]
[1738884497291,0.063,189.44,189.41,13.56647758]
[1738884497994,0.11563741,189.42,189.41,13.56647758]
[1738884499703,0.11563741,189.42,189.39,13.56647758]
[1738884499887,0.11563741,189.42,189.35,2.42367767]
[1738884499888,15.26591499,189.42,189.35,13.56647758]
[1738884500094,13.56647758,189.41,189.34,18.84787758]
[1738884501108,15.26591499,189.42,189.35,13.56647758]
[1738884502092,1.69943741,189.42,189.36,13.56647758]
[1738884502498,1.32159807,189.41,189.36,13.56647758]
[1738884502704,13.56647758,189.37,189.25,1.0]
[1738884503009,13.56647758,189.35,189.28,13.56647758]
[1738884503196,13.56647758,189.37,189.3,13.56647758]
[1738884503399,33.56647758,189.39,189.3,13.56647758]
[1738884504119,1.5841,189.38,189.3,13.56647758]
[1738884504326,1.5841,189.38,189.32,13.56647758]
[1738884504819,1.0,189.32,189.26,0.03]
[1738884505023,13.56647758,189.27,189.26,0.03]
[1738884506185,14.8883766,189.27,189.26,0.03]
[1738884506386,16.4733766,189.27,189.26,0.03]
[1738884508608,2.90689902,189.27,189.26,0.03]
[1738884509330,44.64860897,189.27,189.26,0.03]
[1738884511216,20.0,189.24,189.16,21.74170995]
[1738884511418,21.74170995,189.22,189.14,21.74170995]
[1738884511623,21.74170995,189.21,189.14,21.74170995]
[1738884512392,23.32710995,189.22,189.14,21.74170995]
[1738884512597,1.5854,189.22,189.16,21.74170995]
[1738884512811,1.5854,189.22,189.16,20.24170995]
[1738884514402,6.0857,189.23,189.17,21.74170995]
[1738884515117,3.1497,189.26,189.2,21.74170995]
[1738884515322,23.30630995,189.26,189.19,21.74170995]
[1738884515618,24.89140995,189.26,189.18,21.74170995]
[1738884515817,24.89140995,189.26,189.19,21.74170995]
[1738884516197,21.74170995,189.25,189.18,21.74170995]
[1738884516818,21.74170995,189.25,189.18,27.02760995]
[1738884517120,21.74170995,189.25,189.18,5.2859]
[1738884518008,0.10887362,189.19,189.18,5.2859]
[1738884518314,0.10887362,189.19,189.18,27.02760995]
[1738884518521,0.10887362,189.19,189.18,4.7859]
[1738884519511,0.10887362,189.19,189.17,21.74170995]
[1738884519909,0.10887362,189.19,189.18,21.74170995]
[1738884521608,0.10887362,189.19,189.18,27.02760995]
[1738884526431,7.362e-05,189.19,189.18,48.7693199]
[1738884526607,7.362e-05,189.19,189.18,27.02760995]
[1738884527130,7.362e-05,189.19,189.18,27.40407995]
[1738884527328,21.74178357,189.19,189.16,0.03]
[1738884527537,21.74170995,189.17,189.16,0.03]
[1738884528816,22.85664763,189.17,189.16,0.03]
[1738884529042,21.74170995,189.17,189.16,0.03]
[1738884529545,21.74170995,189.18,189.16,0.03]
[1738884530838,13.60129852,189.17,189.16,0.03]
[1738884531716,13.60129852,189.18,189.16,0.03]
[1738884532238,13.60129852,189.17,189.16,0.03]
[1738884534821,0.06307362,189.19,189.16,0.03]
[1738884535134,13.60129852,189.18,189.16,0.03]
[1738884536138,13.60129852,189.17,189.16,0.03]
[1738884538041,13.71474346,189.17,189.16,0.03]
[1738884539120,15.30054346,189.17,189.16,0.03]
[1738884542439,13.71474346,189.17,189.16,0.03]
[1738884542943,15.03802273,189.17,189.16,0.03]
[1738884544451,16.62382273,189.17,189.16,0.03]
[1738884546121,1.43672421,189.17,189.16,0.03]
[1738884546355,15.03802273,189.17,189.16,0.03]
[1738884546855,1.43672421,189.17,189.16,0.03]
[1738884551454,15.03802273,189.17,189.16,0.03]
[1738884556757,10.14258511,189.17,189.16,0.03]
[1738884557359,11.72838511,189.17,189.16,0.03]
[1738884558038,11.82691338,189.17,189.16,0.03]
[1738884558461,10.24111338,189.17,189.16,0.03]
[1738884559460,10.12766844,189.17,189.16,0.03]
[1738884560661,15.04260632,189.17,189.16,0.03]
[1738884561142,10.12766844,189.17,189.16,0.03]
[1738884561868,15.04364684,189.17,189.16,0.03]
[1738884562875,16.62944684,189.17,189.16,0.03]
[1738884567963,6.33778594,189.17,189.16,0.03]
[1738884569180,15.04364684,189.17,189.16,0.03]
[1738884570491,6.33778594,189.17,189.16,0.03]
[1738884572986,15.04364684,189.17,189.16,0.03]
[1738884573989,6.33778594,189.17,189.16,0.03]
[1738884577874,6.44173809,189.17,189.16,0.03]
[1738884579384,16.63487072,189.17,189.16,0.03]
[1738884581183,6.34320982,189.17,189.16,0.03]
[1738884583383,16.63487072,189.17,189.16,0.03]
[1738884584083,15.04907072,189.17,189.16,0.03]
[1738884584390,16.63487072,189.17,189.16,0.03]
[1738884587581,17.63487072,189.17,189.16,0.03]
[1738884588896,17.63487072,189.17,189.08,1.6129]
[1738884589192,8.7058609,189.12,189.08,1.6129]
[1738884589600,8.7058609,189.09,189.03,8.7058609]
[1738884590097,1.32327927,189.08,189.03,8.7058609]
[1738884591276,13.6218393,189.07,189.01,8.7058609]
[1738884591477,14.94511857,189.07,189.01,8.7058609]
[1738884592380,8.7058609,189.05,189.0,1.5853]
[1738884592693,8.7058609,189.03,188.97,8.7358609]
[1738884593104,8.7058609,189.01,188.97,0.03]
[1738884593286,20.0,189.03,188.97,0.03]
[1738884593603,8.7058609,188.98,188.97,0.03]
[1738884594499,10.2932609,188.98,188.97,0.03]
[1738884594796,15.20383457,188.98,188.97,0.03]
[1738884595169,16.52711384,188.98,188.97,0.03]
[1738884595586,17.52711384,188.98,188.97,0.03]
[1738884595790,16.52711384,188.98,188.97,0.03]
[1738884596001,17.52711384,188.98,188.97,0.03]
[1738884596496,16.52711384,188.98,188.97,0.03]
[1738884596692,21.45693617,188.98,188.97,0.03]
[1738884597890,21.55304061,188.98,188.97,0.03]
[1738884599491,15.31918767,188.98,188.97,0.03]
[1738884601409,0.09610444,188.98,188.97,0.03]
[1738884601822,0.09610444,188.98,188.97,18.95748323]
[1738884602291,0.09610444,188.98,188.97,5.3218]
[1738884602629,15.31918767,188.98,188.97,0.03]
[1738884602917,13.73178767,188.98,188.97,0.03]
[1738884604094,15.31918767,188.98,188.97,0.03]
[1738884604286,13.73178767,188.98,188.97,0.03]
[1738884605226,15.31918767,188.98,188.97,0.03]
[1738884608042,0.09610444,188.98,188.97,0.03]
[1738884608321,15.31918767,188.98,188.97,0.03]
[1738884609326,0.09610444,188.98,188.97,0.03]
[1738884610002,15.31918767,188.98,188.97,0.03]
[1738884611832,0.09610444,188.98,188.97,0.03]
[1738884612417,15.31918767,188.98,188.97,0.03]
[1738884616331,16.31918767,188.98,188.97,0.0001]
[1738884616724,15.31918767,188.98,188.97,0.0001]
[1738884617036,16.31918767,188.98,188.97,0.0001]
[1738884617412,15.31918767,188.98,188.97,0.0001]
[1738884617711,17.31918767,188.98,188.97,0.0001]
[1738884617910,17.4274013,188.98,188.97,0.0001]
[1738884618111,31.21571983,188.98,188.97,0.0001]
[1738884618328,20.0,188.93,188.9,12.9524366]
[1738884618615,8.73115724,188.91,188.9,12.9524366]
[1738884620321,10.31915724,188.91,188.9,12.9524366]
[1738884621219,10.31905724,188.92,188.9,12.9524366]
[1738884621415,8.83937087,188.98,188.91,8.73115724]
[1738884621612,10.42677087,188.98,188.92,8.73115724]
[1738884621816,10.42677087,188.98,188.91,10.29465724]
[1738884622036,8.73115724,188.97,188.91,1.5635]
[1738884622228,8.73115724,188.96,188.91,1.5635]
[1738884622431,10.31875724,188.96,188.91,1.5635]
[1738884622639,15.22074485,188.96,188.91,1.5635]
[1738884623139,1.5876,188.96,188.91,1.5635]
[1738884623345,1.69571363,188.98,188.92,13.63314485]
[1738884623940,13.63314485,188.96,188.91,1.5635]
[1738884624635,15.22074485,188.97,188.91,1.5635]
[1738884624835,15.22074485,188.97,188.91,15.19664485]
[1738884626024,1.5876,188.97,188.91,15.19664485]
[1738884626738,0.10821363,188.98,188.94,13.63314485]
[1738884626942,0.10821363,188.98,188.95,13.63314485]
[1738884627242,0.10821363,188.98,188.97,13.63314485]
[1738884627538,0.10821363,188.98,188.97,21.68504485]
[1738884627938,0.10821363,188.98,188.97,8.0519]
[1738884628540,0.10821363,188.98,188.97,26.97684485]
[1738884628738,0.17121363,188.98,188.97,26.97684485]
[1738884630740,0.10112727,188.99,188.97,29.77028746]
[1738884630941,0.10112727,188.99,188.98,13.63314485]
[1738884631547,2.727e-05,188.99,188.98,29.29597338]
[1738884631748,0.11224982,189.0,188.99,1.12549]
[1738884631937,0.11224982,189.0,188.99,1.91879115]
[1738884632126,0.11224982,189.0,188.99,7.20999115]
[1738884632326,0.11224982,189.0,188.99,20.843136]
[1738884632718,0.11224982,189.0,188.99,21.843136]
[1738884632932,6.796e-05,189.01,189.0,15.78831853]
[1738884633144,9.767e-05,189.03,189.02,20.38080853]
[1738884633442,9.767e-05,189.03,189.02,20.10014485]
[1738884634044,9.767e-05,189.03,189.02,25.39054485]
[1738884635043,9.767e-05,189.03,189.01,1.572]
[1738884635440,9.767e-05,189.03,188.99,5.2912]
[1738884635638,9.767e-05,189.03,188.97,26.94024485]
[1738884635855,13.63324252,189.03,188.97,13.3071]
[1738884636062,9.767e-05,189.03,188.97,26.94024485]
[1738884636444,9.767e-05,189.03,188.98,13.63314485]
[1738884636845,1.32426381,189.03,188.98,13.63314485]
[1738884637966,0.09589087,188.99,188.98,13.63314485]
[1738884638552,1.68329087,188.99,188.95,0.03]
[1738884638867,13.63314485,188.96,188.95,0.03]
[1738884639567,14.95731099,188.96,188.95,0.03]
[1738884640251,21.45087299,188.96,188.95,0.03]
[1738884648455,23.45087299,188.96,188.95,0.0001]
[1738884648690,20.0,188.92,188.9,12.9524366]
[1738884648877,27.2662897,188.91,188.9,12.9524366]
[1738884649083,21.0,188.87,188.74,18.93134485]
[1738884649260,13.63314485,188.82,188.76,13.63314485]
[1738884649451,13.63314485,188.83,188.77,13.63314485]
[1738884649862,13.63314485,188.84,188.78,13.63314485]
[1738884650165,20.0,188.87,188.77,13.63314485]
[1738884650166,13.63314485,188.83,188.77,13.63314485]
[1738884650455,15.22204485,188.81,188.75,13.63314485]
[1738884650663,15.22204485,188.81,188.74,13.63314485]
[1738884650866,21.0,188.87,188.75,13.63314485]
[1738884650867,13.63314485,188.82,188.75,13.63314485]
[1738884651475,13.63314485,188.81,188.74,13.63314485]
[1738884652281,13.63314485,188.82,188.75,13.63314485]
[1738884652578,13.63314485,188.81,188.74,13.63314485]
[1738884653853,6.5599,188.85,188.71,5.2991]
[1738884653854,1.589,188.79,188.73,13.63314485]
[1738884654061,1.589,188.79,188.74,0.03]
[1738884655154,13.63314485,188.83,188.76,13.63314485]
[1738884655360,1.5886,188.84,188.78,13.63314485]
[1738884655361,15.22174485,188.84,188.78,13.63314485]
[1738884655665,15.22174485,188.84,188.74,0.03]
[1738884655666,13.63314485,188.8,188.74,13.66314485]
[1738884655869,13.63314485,188.78,188.74,0.03]
[1738884656055,13.63314485,188.76,188.74,0.03]
[1738884656255,13.63314485,188.75,188.74,0.03]
[1738884657071,15.22254485,188.75,188.74,0.03]
[1738884657272,30.01086338,188.75,188.74,0.0001]
[1738884657575,15.22254485,188.75,188.74,0.0001]
[1738884658085,31.63414175,188.75,188.74,0.0001]
[1738884658289,16.84582322,188.75,188.74,0.0001]
[1738884659172,0.10327837,188.75,188.74,0.0001]
[1738884659859,15.32582322,188.75,188.74,0.0001]
[1738884660493,0.10327837,188.75,188.74,0.0001]
[1738884661469,0.10327837,188.75,188.74,13.63324485]
[1738884662091,0.10327837,188.75,188.74,21.31004485]
[1738884663287,0.10327837,188.75,188.74,26.60824485]
[1738884663974,7.837e-05,188.75,188.74,28.10824485]
[1738884664171,7.876e-05,188.76,188.75,2.0]
[1738884664367,2e-06,188.77,188.75,14.63314485]
[1738884664703,2e-06,188.77,188.76,13.63314485]
[1738884665285,2e-06,188.77,188.76,18.93084485]
[1738884666874,0.063002,188.77,188.76,18.93084485]
[1738884669097,0.063002,188.77,188.74,0.03]
[1738884669464,0.063002,188.77,188.74,18.96134485]
[1738884669664,0.063002,188.77,188.75,13.63314485]
[1738884670076,0.063002,188.77,188.74,18.96134485]
[1738884670883,0.063002,188.77,188.75,13.63314485]
[1738884671395,0.063002,188.77,188.76,13.63314485]
[1738884672098,0.063002,188.77,188.74,13.66314485]
[1738884672392,0.063002,188.77,188.74,0.03]
[1738884672782,0.063002,188.77,188.74,13.66314485]
[1738884673098,0.063002,188.77,188.74,18.96134485]
[1738884674100,0.063002,188.77,188.75,13.63314485]
[1738884674775,0.063002,188.77,188.76,13.63314485]
[1738884675593,0.046335,188.81,188.79,1.0]
[1738884675791,15.22104485,188.93,188.79,0.79416266]
[1738884676096,13.63314485,188.93,188.86,13.63314485]
[1738884676300,13.63314485,188.93,188.86,18.92784485]
[1738884676602,13.63314485,188.95,188.88,13.63314485]
[1738884676789,13.69614485,188.96,188.89,13.63314485]
[1738884677308,0.063,188.96,188.92,13.63314485]
[1738884677511,0.063,188.96,188.91,13.63314485]
[1738884677679,0.063,188.96,188.9,13.63314485]
[1738884677874,0.09941042,188.92,188.89,13.63314485]
[1738884678386,0.09941042,188.92,188.88,13.63314485]
[1738884678587,0.09941042,188.92,188.86,27.11462382]
[1738884678793,0.09941042,188.92,188.87,21.81992382]
[1738884679186,0.09941042,188.92,188.88,21.81992382]